[Event "*** Titled Tuesday Blitz"]
[Site "Chess.com"]
[Date "2020.04.14"]
[Round "7"]
[White "tandaleo"]
[Black "1lec"]
[Result "0-1"]
[WhiteElo "2326"]
[BlackElo "2160"]
[TimeControl "180+1"]
[EndTime "11:15:23 PDT"]
[Termination "1lec won by resignation"]

1. d4 {[%clk 0:03:00.9]} 1... Nf6 {[%clk 0:02:59.8]} 2. c4 {[%clk 0:03:01.1]}
2... g6 {[%clk 0:03:00.2]} 3. Nc3 {[%clk 0:03:01]} 3... Bg7 {[%clk 0:03:00.7]}
4. e4 {[%clk 0:03:00.7]} 4... d6 {[%clk 0:03:01.3]} 5. Be2 {[%clk 0:02:59.4]}
5... O-O {[%clk 0:03:00.7]} 6. Nf3 {[%clk 0:02:59.7]} 6... e5 {[%clk 0:03:00.4]}
7. d5 {[%clk 0:02:59.5]} 7... a5 {[%clk 0:02:58.1]} 8. Bg5 {[%clk 0:02:59.4]}
8... Na6 {[%clk 0:02:50.7]} 9. Nd2 {[%clk 0:02:56.9]} 9... Bd7 {[%clk 0:02:50]}
10. g4 {[%clk 0:02:39.5]} 10... Qe8 {[%clk 0:02:48]} 11. h4 {[%clk 0:02:37.8]}
11... h6 {[%clk 0:02:37.1]} 12. Be3 {[%clk 0:02:36.8]} 12... Nh7 {[%clk
0:02:31.2]} 13. g5 {[%clk 0:02:09.9]} 13... h5 {[%clk 0:02:30.7]} 14. Rg1 {[%clk
0:02:04.8]} 14... Nc5 {[%clk 0:01:47.9]} 15. Qc2 {[%clk 0:01:32.6]} 15... f6
{[%clk 0:01:12.2]} 16. gxf6 {[%clk 0:01:26.2]} 16... Nxf6 {[%clk 0:01:11.4]} 17.
O-O-O {[%clk 0:01:17.2]} 17... Ng4 {[%clk 0:00:57.8]} 18. Bxg4 {[%clk
0:01:16.5]} 18... Bxg4 {[%clk 0:00:52.2]} 19. f3 {[%clk 0:01:16.1]} 19... Bxf3
{[%clk 0:00:50.4]} 20. Nxf3 {[%clk 0:01:15.5]} 20... Rxf3 {[%clk 0:00:50.5]} 21.
Bxc5 {[%clk 0:01:00.3]} 21... Bh6+ {[%clk 0:00:40.9]} 22. Kb1 {[%clk 0:00:52.4]}
22... dxc5 {[%clk 0:00:41.1]} 23. d6 {[%clk 0:00:23.5]} 23... cxd6 {[%clk
0:00:25.4]} 24. Rxd6 {[%clk 0:00:23.1]} 24... Ra6 {[%clk 0:00:20.9]} 25. Rxa6
{[%clk 0:00:15]} 25... bxa6 {[%clk 0:00:20.7]} 26. Qe2 {[%clk 0:00:15.3]} 26...
Qf7 {[%clk 0:00:20.1]} 27. Nd5 {[%clk 0:00:12.8]} 27... Rf2 {[%clk 0:00:16.6]}
28. Qd3 {[%clk 0:00:06.8]} 28... Kh7 {[%clk 0:00:12.8]} 29. Ne3 {[%clk
0:00:04.6]} 29... Rf3 {[%clk 0:00:11.4]} 30. Re1 {[%clk 0:00:02.5]} 30... Qf4
{[%clk 0:00:06.2]} 31. Qd7+ {[%clk 0:00:02.2]} 31... Qf7 {[%clk 0:00:06.4]} 32.
Qxf7+ {[%clk 0:00:02.4]} 32... Rxf7 {[%clk 0:00:07.3]} 33. Nd5 {[%clk
0:00:02.9]} 33... g5 {[%clk 0:00:04.4]} 34. hxg5 {[%clk 0:00:02.8]} 34... Bxg5
{[%clk 0:00:05.3]} 35. Rh1 {[%clk 0:00:03]} 35... h4 {[%clk 0:00:05.7]} 36. Kc2
{[%clk 0:00:03]} 36... Kg6 {[%clk 0:00:05.8]} 37. Kd3 {[%clk 0:00:03.3]} 37...
Kh5 {[%clk 0:00:06.3]} 38. Ke2 {[%clk 0:00:02.2]} 38... Kg4 {[%clk 0:00:06.8]}
39. Nc3 {[%clk 0:00:01.9]} 39... h3 {[%clk 0:00:06.8]} 40. Rg1+ {[%clk 0:00:02]}
40... Kh4 {[%clk 0:00:07.1]} 41. Nd1 {[%clk 0:00:02.4]} 41... Bf4 {[%clk
0:00:06.9]} 42. Nf2 {[%clk 0:00:02.3]} 42... Bg3 {[%clk 0:00:06.1]} 43. Nxh3
{[%clk 0:00:01.7]} 43... Kxh3 {[%clk 0:00:06]} 44. Rh1+ {[%clk 0:00:02.6]} 44...
Kg4 {[%clk 0:00:06.4]} 45. Rh6 {[%clk 0:00:02.7]} 45... Rf2+ {[%clk 0:00:06.1]}
46. Kd1 {[%clk 0:00:03.5]} 46... Rxb2 {[%clk 0:00:06.1]} 47. Rxa6 {[%clk
0:00:04]} 47... Kf4 {[%clk 0:00:06.3]} 48. Rxa5 {[%clk 0:00:04.3]} 48... Kxe4
{[%clk 0:00:06.7]} 49. Rxc5 {[%clk 0:00:04.9]} 49... Kd3 {[%clk 0:00:05]} 50.
Rd5+ {[%clk 0:00:05]} 50... Kxc4 {[%clk 0:00:04.5]} 51. Rd8 {[%clk 0:00:05.1]}
51... Rxa2 {[%clk 0:00:04]} 52. Rc8+ {[%clk 0:00:05.1]} 52... Kd3 {[%clk
0:00:04.3]} 53. Rd8+ {[%clk 0:00:05.5]} 53... Ke3 {[%clk 0:00:04.6]} 54. Rb8
{[%clk 0:00:05.4]} 54... e4 {[%clk 0:00:03.3]} 55. Rb3+ {[%clk 0:00:03.3]} 55...
Kf4 {[%clk 0:00:03.2]} 56. Kc1 {[%clk 0:00:03.1]} 56... e3 {[%clk 0:00:02.9]}
57. Rb4+ {[%clk 0:00:03.1]} 57... Kf3 {[%clk 0:00:03]} 58. Rb3 {[%clk
0:00:03.8]} 58... Rf2 {[%clk 0:00:03.1]} 59. Kd1 {[%clk 0:00:03.8]} 59... Rf1+
{[%clk 0:00:02.8]} 60. Kc2 {[%clk 0:00:04.4]} 60... Kf2 {[%clk 0:00:02.8]} 61.
Kd3 {[%clk 0:00:05]} 61... Rd1+ {[%clk 0:00:02.6]} 62. Ke4 {[%clk 0:00:05.2]}
62... e2 {[%clk 0:00:02.9]} 63. Rf3+ {[%clk 0:00:05.5]} 63... Kg2 {[%clk
0:00:03.1]} 64. Re3 {[%clk 0:00:05.9]} 64... e1=Q {[%clk 0:00:03.5]} 65. Rxe1
{[%clk 0:00:06.5]} 65... Rxe1+ {[%clk 0:00:04.4]} 66. Kf5 {[%clk 0:00:06.7]}
66... Rf1+ {[%clk 0:00:04.9]} 67. Kg6 {[%clk 0:00:07.6]} 67... Be1 {[%clk
0:00:05.4]} 68. Kg5 {[%clk 0:00:08.4]} 68... Rf3 {[%clk 0:00:05.8]} 69. Kg4
{[%clk 0:00:09.3]} 69... Rg3+ {[%clk 0:00:05.6]} 0-1

[Event "*** Titled Tuesday Blitz"]
[Site "Chess.com"]
[Date "2020.04.14"]
[Round "7"]
[White "Flawless_Fighter"]
[Black "Sebastian"]
[Result "0-1"]
[WhiteElo "2609"]
[BlackElo "2996"]
[TimeControl "180+1"]
[EndTime "11:15:25 PDT"]
[Termination "Sebastian won on time"]

1. e4 {[%clk 0:03:00.9]} 1... e5 {[%clk 0:02:59.3]} 2. Nf3 {[%clk 0:03:01.5]}
2... Nc6 {[%clk 0:02:59.4]} 3. Bb5 {[%clk 0:03:02.1]} 3... Nf6 {[%clk
0:02:59.2]} 4. d3 {[%clk 0:03:00.3]} 4... d6 {[%clk 0:02:59]} 5. O-O {[%clk
0:03:00.5]} 5... Be7 {[%clk 0:02:59]} 6. c3 {[%clk 0:03:01]} 6... a6 {[%clk
0:02:59.4]} 7. Ba4 {[%clk 0:03:00.2]} 7... O-O {[%clk 0:02:59.5]} 8. Re1 {[%clk
0:02:59.8]} 8... Re8 {[%clk 0:02:59.4]} 9. h3 {[%clk 0:02:59.7]} 9... h6 {[%clk
0:02:58.2]} 10. Nbd2 {[%clk 0:03:00.1]} 10... Bf8 {[%clk 0:02:57.7]} 11. Nf1
{[%clk 0:02:59.8]} 11... b5 {[%clk 0:02:57.9]} 12. Bb3 {[%clk 0:02:58.4]} 12...
Na5 {[%clk 0:02:49.1]} 13. Bc2 {[%clk 0:02:56.2]} 13... c5 {[%clk 0:02:49.7]}
14. Ng3 {[%clk 0:02:54.6]} 14... Qc7 {[%clk 0:02:44.3]} 15. d4 {[%clk
0:02:49.2]} 15... Bd7 {[%clk 0:02:38.3]} 16. b3 {[%clk 0:02:41.7]} 16... cxd4
{[%clk 0:02:28.5]} 17. cxd4 {[%clk 0:02:42.6]} 17... Rac8 {[%clk 0:02:28.7]} 18.
Bd3 {[%clk 0:02:31.8]} 18... Nc6 {[%clk 0:02:23.9]} 19. Bb2 {[%clk 0:02:16.5]}
19... Qb6 {[%clk 0:02:23.6]} 20. d5 {[%clk 0:02:08.1]} 20... Nb4 {[%clk
0:02:19.6]} 21. Qd2 {[%clk 0:02:08.4]} 21... Nxd3 {[%clk 0:02:15.1]} 22. Qxd3
{[%clk 0:02:09.3]} 22... b4 {[%clk 0:01:56.2]} 23. Rac1 {[%clk 0:02:01.4]} 23...
a5 {[%clk 0:01:52.7]} 24. Nd2 {[%clk 0:01:56.4]} 24... Bb5 {[%clk 0:01:51.6]}
25. Nc4 {[%clk 0:01:49.3]} 25... Qa6 {[%clk 0:01:50.8]} 26. Nf5 {[%clk
0:01:41.8]} 26... g6 {[%clk 0:01:46.8]} 27. Nfe3 {[%clk 0:01:39.9]} 27... h5
{[%clk 0:01:45.9]} 28. f4 {[%clk 0:01:12.1]} 28... exf4 {[%clk 0:01:38.2]} 29.
Bxf6 {[%clk 0:00:57.9]} 29... fxe3 {[%clk 0:01:37.6]} 30. Bb2 {[%clk 0:00:54.7]}
30... Bxc4 {[%clk 0:01:25.4]} 31. bxc4 {[%clk 0:00:47.7]} 31... Bg7 {[%clk
0:01:16.5]} 32. Bxg7 {[%clk 0:00:44.7]} 32... Kxg7 {[%clk 0:01:17.4]} 33. Qd4+
{[%clk 0:00:42.6]} 33... Re5 {[%clk 0:00:58.5]} 34. Rxe3 {[%clk 0:00:37.7]}
34... Rc5 {[%clk 0:00:54.8]} 35. Rf3 {[%clk 0:00:36.5]} 35... Kg8 {[%clk
0:00:48.5]} 36. Kh1 {[%clk 0:00:33.8]} 36... Qc8 {[%clk 0:00:47]} 37. a3 {[%clk
0:00:28.4]} 37... Qe8 {[%clk 0:00:44.7]} 38. axb4 {[%clk 0:00:27.8]} 38... axb4
{[%clk 0:00:41.2]} 39. Rf4 {[%clk 0:00:24.9]} 39... b3 {[%clk 0:00:38.5]} 40.
Rb1 {[%clk 0:00:25.2]} 40... Qa4 {[%clk 0:00:37.9]} 41. Qc3 {[%clk 0:00:22.1]}
41... Qxc4 {[%clk 0:00:17.7]} 42. Qxc4 {[%clk 0:00:21.9]} 42... Rxc4 {[%clk
0:00:18.4]} 43. Rxb3 {[%clk 0:00:22.5]} 43... g5 {[%clk 0:00:19.1]} 44. Rf6
{[%clk 0:00:20.3]} 44... Rexe4 {[%clk 0:00:17.5]} 45. Rxd6 {[%clk 0:00:20.5]}
45... Re1+ {[%clk 0:00:15.5]} 46. Kh2 {[%clk 0:00:20.4]} 46... h4 {[%clk
0:00:16]} 47. Rb2 {[%clk 0:00:16.2]} 47... Rcc1 {[%clk 0:00:12.6]} 48. g4 {[%clk
0:00:12.5]} 48... Rh1+ {[%clk 0:00:12.6]} 49. Kg2 {[%clk 0:00:12.8]} 49... Rcg1+
{[%clk 0:00:12.7]} 50. Kf2 {[%clk 0:00:13.3]} 50... Rg3 {[%clk 0:00:12.9]} 51.
Rb8+ {[%clk 0:00:10.8]} 51... Kg7 {[%clk 0:00:13.2]} 52. Rdd8 {[%clk 0:00:08.2]}
52... Rh2+ {[%clk 0:00:12]} 53. Kf1 {[%clk 0:00:08.2]} 53... Rc3 {[%clk
0:00:10.2]} 54. Rg8+ {[%clk 0:00:06.7]} 54... Kf6 {[%clk 0:00:09.8]} 55. Rb6+
{[%clk 0:00:06.9]} 55... Ke7 {[%clk 0:00:08.6]} 56. Rb7+ {[%clk 0:00:03.5]}
56... Kd6 {[%clk 0:00:08.7]} 57. Rd8+ {[%clk 0:00:03.3]} 57... Ke5 {[%clk
0:00:08.5]} 58. Re7+ {[%clk 0:00:02.8]} 58... Kd4 {[%clk 0:00:08.9]} 59. Re1
{[%clk 0:00:02.3]} 59... Rh1+ {[%clk 0:00:03.8]} 60. Kf2 {[%clk 0:00:02.3]}
60... Rc2+ {[%clk 0:00:04.1]} 61. Re2 {[%clk 0:00:01.6]} 61... Rh2+ {[%clk
0:00:04.5]} 62. Kf3 {[%clk 0:00:01.9]} 62... Rcxe2 {[%clk 0:00:04.4]} 0-1

[Event "*** Titled Tuesday Blitz"]
[Site "Chess.com"]
[Date "2020.04.14"]
[Round "7"]
[White "serhanberat_ozdemir"]
[Black "Mourinho_Jose"]
[Result "1-0"]
[WhiteElo "2451"]
[BlackElo "2603"]
[TimeControl "180+1"]
[EndTime "11:15:26 PDT"]
[Termination "serhanberat_ozdemir won by resignation"]

1. e4 {[%clk 0:03:00.9]} 1... e5 {[%clk 0:02:58.9]} 2. Nf3 {[%clk 0:03:00.8]}
2... Nf6 {[%clk 0:02:59.2]} 3. Nc3 {[%clk 0:02:54.6]} 3... Bb4 {[%clk
0:02:58.7]} 4. Nxe5 {[%clk 0:02:51.9]} 4... O-O {[%clk 0:02:58.3]} 5. Be2 {[%clk
0:02:48.9]} 5... Re8 {[%clk 0:02:58.2]} 6. Nd3 {[%clk 0:02:48.7]} 6... Bxc3
{[%clk 0:02:58.6]} 7. dxc3 {[%clk 0:02:43.9]} 7... Nxe4 {[%clk 0:02:59.5]} 8.
O-O {[%clk 0:02:41.1]} 8... d5 {[%clk 0:02:55.3]} 9. Nf4 {[%clk 0:02:41]} 9...
Nf6 {[%clk 0:02:55]} 10. Be3 {[%clk 0:02:36.1]} 10... c6 {[%clk 0:02:54.8]} 11.
c4 {[%clk 0:02:34.6]} 11... dxc4 {[%clk 0:02:44.3]} 12. Bxc4 {[%clk 0:02:35.5]}
12... Bf5 {[%clk 0:02:39.4]} 13. Qxd8 {[%clk 0:02:29.5]} 13... Rxd8 {[%clk
0:02:40.3]} 14. Rad1 {[%clk 0:02:26.8]} 14... Nbd7 {[%clk 0:02:40.6]} 15. Bb3
{[%clk 0:02:19.8]} 15... Nb6 {[%clk 0:02:37.1]} 16. Rxd8+ {[%clk 0:02:12.3]}
16... Rxd8 {[%clk 0:02:38]} 17. f3 {[%clk 0:02:08.2]} 17... g5 {[%clk
0:02:24.6]} 18. Ne2 {[%clk 0:01:56]} 18... h6 {[%clk 0:02:17.6]} 19. Kf2 {[%clk
0:01:51]} 19... Nfd5 {[%clk 0:02:13.2]} 20. Bd4 {[%clk 0:01:47.1]} 20... Nf4
{[%clk 0:01:54.8]} 21. Be3 {[%clk 0:01:35.1]} 21... Nfd5 {[%clk 0:01:24]} 22.
Rd1 {[%clk 0:01:31]} 22... Re8 {[%clk 0:01:21.6]} 23. Bc5 {[%clk 0:01:25.5]}
23... Kg7 {[%clk 0:01:02.7]} 24. Rd2 {[%clk 0:01:17.8]} 24... Nf6 {[%clk
0:00:59.6]} 25. Ng3 {[%clk 0:01:13.1]} 25... Bh7 {[%clk 0:00:51.9]} 26. Bd4
{[%clk 0:01:05.4]} 26... Bg6 {[%clk 0:00:46.5]} 27. Bc3 {[%clk 0:01:02.2]} 27...
Nc8 {[%clk 0:00:26.6]} 28. Ne2 {[%clk 0:00:46.1]} 28... Bf5 {[%clk 0:00:23.5]}
29. Ng3 {[%clk 0:00:44.7]} 29... Be6 {[%clk 0:00:20.6]} 30. Nf1 {[%clk
0:00:45.6]} 30... Bxb3 {[%clk 0:00:18]} 31. axb3 {[%clk 0:00:38.9]} 31... Kg6
{[%clk 0:00:18.4]} 32. Ne3 {[%clk 0:00:37]} 32... Nb6 {[%clk 0:00:16.7]} 33. Rd6
{[%clk 0:00:34.2]} 33... Re6 {[%clk 0:00:17]} 34. Rxe6 {[%clk 0:00:31.7]} 34...
fxe6 {[%clk 0:00:17.9]} 35. Bxf6 {[%clk 0:00:30.4]} 35... Kxf6 {[%clk
0:00:17.7]} 36. Ng4+ {[%clk 0:00:29.5]} 36... Kg6 {[%clk 0:00:18.1]} 37. Ke3
{[%clk 0:00:28.9]} 37... h5 {[%clk 0:00:18.4]} 38. Nf2 {[%clk 0:00:26.9]} 38...
Kf5 {[%clk 0:00:18.5]} 39. g4+ {[%clk 0:00:25]} 39... hxg4 {[%clk 0:00:18.6]}
40. fxg4+ {[%clk 0:00:24.3]} 40... Ke5 {[%clk 0:00:18.6]} 41. Ne4 {[%clk
0:00:19.9]} 41... Nd5+ {[%clk 0:00:18.7]} 42. Kf3 {[%clk 0:00:18.3]} 42... Nb4
{[%clk 0:00:18.8]} 43. c3 {[%clk 0:00:17.3]} 43... Nd3 {[%clk 0:00:18.8]} 44.
Nxg5 {[%clk 0:00:16.7]} 44... Nxb2 {[%clk 0:00:18.5]} 45. h4 {[%clk 0:00:16.1]}
45... a5 {[%clk 0:00:15.8]} 46. Ke3 {[%clk 0:00:08.3]} 46... b5 {[%clk
0:00:15.5]} 47. Nf3+ {[%clk 0:00:07]} 47... Kf6 {[%clk 0:00:14.1]} 48. g5+
{[%clk 0:00:07.9]} 48... Kf5 {[%clk 0:00:14.1]} 49. Nd4+ {[%clk 0:00:04.6]}
49... Kg6 {[%clk 0:00:14.3]} 50. Nxc6 {[%clk 0:00:05.1]} 50... a4 {[%clk
0:00:14.9]} 51. bxa4 {[%clk 0:00:06]} 51... bxa4 {[%clk 0:00:15.8]} 52. Nb4
{[%clk 0:00:06.4]} 52... Nc4+ {[%clk 0:00:15.8]} 53. Kd4 {[%clk 0:00:06.5]}
53... Nd6 {[%clk 0:00:15.9]} 54. Ke5 {[%clk 0:00:06.9]} 54... Nf5 {[%clk
0:00:15.6]} 55. Kxe6 {[%clk 0:00:05.1]} 55... Nxh4 {[%clk 0:00:15.9]} 56. c4
{[%clk 0:00:05.4]} 56... Nf3 {[%clk 0:00:16.1]} 57. c5 {[%clk 0:00:05.2]} 57...
a3 {[%clk 0:00:16.6]} 58. Kd5 {[%clk 0:00:04.4]} 58... Nxg5 {[%clk 0:00:16.1]}
59. c6 {[%clk 0:00:04.1]} 59... Nh7 {[%clk 0:00:14.9]} 60. Ke6 {[%clk
0:00:02.5]} 60... Nf6 {[%clk 0:00:15.8]} 61. c7 {[%clk 0:00:03.2]} 61... a2
{[%clk 0:00:15.7]} 62. Nxa2 {[%clk 0:00:02.9]} 62... Nh5 {[%clk 0:00:15.2]} 63.
c8=Q {[%clk 0:00:03.8]} 63... Nf4+ {[%clk 0:00:16.1]} 64. Ke5 {[%clk 0:00:03.6]}
64... Kg5 {[%clk 0:00:17]} 65. Qf5+ {[%clk 0:00:03.2]} 65... Kh6 {[%clk
0:00:17.7]} 66. Qxf4+ {[%clk 0:00:04.1]} 66... Kh7 {[%clk 0:00:18.6]} 67. Qg4
{[%clk 0:00:04.5]} 67... Kh8 {[%clk 0:00:19.4]} 68. Kf6 {[%clk 0:00:05.4]} 1-0

[Event "*** Titled Tuesday Blitz"]
[Site "Chess.com"]
[Date "2020.04.14"]
[Round "7"]
[White "exoticprincess"]
[Black "praveenb2002"]
[Result "1-0"]
[WhiteElo "2856"]
[BlackElo "2689"]
[TimeControl "180+1"]
[EndTime "11:15:29 PDT"]
[Termination "exoticprincess won on time"]

1. d4 {[%clk 0:03:00.9]} 1... Nf6 {[%clk 0:02:57.1]} 2. c4 {[%clk 0:03:01.4]}
2... e6 {[%clk 0:02:57.1]} 3. Nc3 {[%clk 0:03:02]} 3... Bb4 {[%clk 0:02:56.5]}
4. e3 {[%clk 0:03:02.6]} 4... O-O {[%clk 0:02:56]} 5. Bd3 {[%clk 0:03:03.2]}
5... d5 {[%clk 0:02:53.9]} 6. cxd5 {[%clk 0:03:04.1]} 6... exd5 {[%clk
0:02:51.9]} 7. Ne2 {[%clk 0:03:05]} 7... c6 {[%clk 0:02:49.3]} 8. Bd2 {[%clk
0:03:05.4]} 8... Bg4 {[%clk 0:02:48.4]} 9. Rc1 {[%clk 0:03:04.5]} 9... Bd6
{[%clk 0:02:46.1]} 10. f3 {[%clk 0:03:04.8]} 10... Bh5 {[%clk 0:02:45.8]} 11.
O-O {[%clk 0:03:04.9]} 11... Bg6 {[%clk 0:02:44.8]} 12. Be1 {[%clk 0:03:04.4]}
12... Nbd7 {[%clk 0:02:42.9]} 13. Kh1 {[%clk 0:03:04.1]} 13... Re8 {[%clk
0:02:42.7]} 14. Bf2 {[%clk 0:03:04.4]} 14... Qe7 {[%clk 0:02:40.2]} 15. h3
{[%clk 0:03:02.3]} 15... Rac8 {[%clk 0:02:37.8]} 16. Bg1 {[%clk 0:03:02.2]}
16... Bb8 {[%clk 0:02:36.2]} 17. Qd2 {[%clk 0:02:54]} 17... Nb6 {[%clk 0:02:34]}
18. b3 {[%clk 0:02:53.1]} 18... Nh5 {[%clk 0:02:27.3]} 19. e4 {[%clk 0:02:43.8]}
19... dxe4 {[%clk 0:02:20]} 20. fxe4 {[%clk 0:02:44.7]} 20... Rcd8 {[%clk
0:02:20.3]} 21. e5 {[%clk 0:02:38.4]} 21... Bxd3 {[%clk 0:02:14.1]} 22. Qxd3
{[%clk 0:02:38.8]} 22... Qxe5 {[%clk 0:02:14.5]} 23. Qxh7+ {[%clk 0:02:35.8]}
23... Kxh7 {[%clk 0:02:13.2]} 24. dxe5 {[%clk 0:02:36.7]} 24... Kg8 {[%clk
0:02:03.1]} 25. g4 {[%clk 0:02:35.2]} 25... Rxe5 {[%clk 0:01:51.9]} 26. gxh5
{[%clk 0:02:33.8]} 26... Rxh5 {[%clk 0:01:51.1]} 27. Rf3 {[%clk 0:02:33.6]}
27... Rd2 {[%clk 0:01:45.8]} 28. Rd1 {[%clk 0:02:26.5]} 28... Rxd1 {[%clk
0:01:43.7]} 29. Nxd1 {[%clk 0:02:27.4]} 29... Nd5 {[%clk 0:01:42.9]} 30. Ndc3
{[%clk 0:02:26.7]} 30... Nf6 {[%clk 0:01:41.5]} 31. Rd3 {[%clk 0:02:22.3]} 31...
Kh7 {[%clk 0:01:40]} 32. Kg2 {[%clk 0:02:19.4]} 32... Rg5+ {[%clk 0:01:37.4]}
33. Kf1 {[%clk 0:02:19.2]} 33... Rf5+ {[%clk 0:01:35.8]} 34. Ke1 {[%clk
0:02:19.5]} 34... a6 {[%clk 0:01:30.9]} 35. Bd4 {[%clk 0:02:13.8]} 35... Nh5
{[%clk 0:01:26.3]} 36. Re3 {[%clk 0:02:10.5]} 36... Bd6 {[%clk 0:01:25.8]} 37.
Ne4 {[%clk 0:02:09.2]} 37... Bb4+ {[%clk 0:01:26]} 38. Bc3 {[%clk 0:02:08.6]}
38... Be7 {[%clk 0:01:21.1]} 39. Rd3 {[%clk 0:02:02.5]} 39... Bh4+ {[%clk
0:01:14.5]} 40. Kd1 {[%clk 0:02:02.2]} 40... Rf1+ {[%clk 0:01:14.4]} 41. Kc2
{[%clk 0:02:02.3]} 41... Rh1 {[%clk 0:01:12.6]} 42. Rd7 {[%clk 0:01:59.5]} 42...
Kg6 {[%clk 0:01:09.7]} 43. Rxb7 {[%clk 0:01:57.2]} 43... Rxh3 {[%clk 0:01:08.4]}
44. Rb6 {[%clk 0:01:56.8]} 44... Re3 {[%clk 0:01:07.2]} 45. Rxc6+ {[%clk
0:01:54.9]} 45... f6 {[%clk 0:01:06.3]} 46. Nxf6 {[%clk 0:01:45]} 46... Bxf6
{[%clk 0:00:42.9]} 47. Kd2 {[%clk 0:01:43.3]} 47... Re8 {[%clk 0:00:31.6]} 48.
Rxa6 {[%clk 0:01:43.1]} 48... Kg5 {[%clk 0:00:29.6]} 49. Bxf6+ {[%clk 0:01:34]}
49... gxf6 {[%clk 0:00:30.5]} 50. Nd4 {[%clk 0:01:29.4]} 50... Ng3 {[%clk
0:00:26.2]} 51. Nf3+ {[%clk 0:01:25.3]} 51... Kg4 {[%clk 0:00:20.6]} 52. Nd4
{[%clk 0:01:19.5]} 52... Ne4+ {[%clk 0:00:20.5]} 53. Kc2 {[%clk 0:01:17.2]}
53... Rc8+ {[%clk 0:00:20.1]} 54. Kb2 {[%clk 0:01:17.2]} 54... f5 {[%clk
0:00:19.9]} 55. Rg6+ {[%clk 0:01:16.6]} 55... Kf4 {[%clk 0:00:20.4]} 56. a4
{[%clk 0:01:16.9]} 56... Ke5 {[%clk 0:00:20.1]} 57. Nc6+ {[%clk 0:01:17.1]}
57... Kf4 {[%clk 0:00:18.8]} 58. a5 {[%clk 0:01:16.6]} 58... Ke3 {[%clk
0:00:17.2]} 59. Ne7 {[%clk 0:01:16.3]} 59... Rf8 {[%clk 0:00:16.3]} 60. Nd5+
{[%clk 0:01:02.4]} 60... Kd4 {[%clk 0:00:16.2]} 61. Nf4 {[%clk 0:01:02.6]} 61...
Ke3 {[%clk 0:00:16.2]} 62. Nd5+ {[%clk 0:01:01.9]} 62... Kd4 {[%clk 0:00:16]}
63. Nc7 {[%clk 0:01:02.5]} 63... Rc8 {[%clk 0:00:14.1]} 64. Rc6 {[%clk
0:01:00.5]} 64... Rh8 {[%clk 0:00:06.5]} 65. a6 {[%clk 0:01:00.4]} 65... f4
{[%clk 0:00:06.5]} 66. a7 {[%clk 0:00:58.9]} 66... f3 {[%clk 0:00:06.9]} 67. Rh6
{[%clk 0:00:26.3]} 67... Rc8 {[%clk 0:00:05.9]} 68. Rh3 {[%clk 0:00:23.1]} 68...
f2 {[%clk 0:00:05.8]} 69. Rf3 {[%clk 0:00:23.3]} 69... Rd8 {[%clk 0:00:03.2]}
70. Ne6+ {[%clk 0:00:22.5]} 70... Ke5 {[%clk 0:00:02.6]} 71. Nxd8 {[%clk
0:00:23.4]} 1-0

[Event "*** Titled Tuesday Blitz"]
[Site "Chess.com"]
[Date "2020.04.14"]
[Round "7"]
[White "Anton_Demchenko"]
[Black "Evgeny81"]
[Result "0-1"]
[WhiteElo "2919"]
[BlackElo "2741"]
[TimeControl "180+1"]
[EndTime "11:15:29 PDT"]
[Termination "Evgeny81 won by resignation"]

1. e4 {[%clk 0:03:00.9]} 1... c6 {[%clk 0:02:58.3]} 2. Nf3 {[%clk 0:03:01.1]}
2... d5 {[%clk 0:02:57.9]} 3. d3 {[%clk 0:03:01.7]} 3... dxe4 {[%clk 0:02:57]}
4. dxe4 {[%clk 0:03:02.6]} 4... Qxd1+ {[%clk 0:02:57.5]} 5. Kxd1 {[%clk
0:03:03.5]} 5... f6 {[%clk 0:02:53.5]} 6. Nfd2 {[%clk 0:03:00.5]} 6... e5 {[%clk
0:02:51.4]} 7. a4 {[%clk 0:03:00.1]} 7... Be6 {[%clk 0:02:50.4]} 8. Bc4 {[%clk
0:02:52.4]} 8... Kf7 {[%clk 0:02:45.1]} 9. Bxe6+ {[%clk 0:02:39.4]} 9... Kxe6
{[%clk 0:02:44.5]} 10. Nb3 {[%clk 0:02:40.3]} 10... Nd7 {[%clk 0:02:38.2]} 11.
Be3 {[%clk 0:02:40.4]} 11... h5 {[%clk 0:02:32.4]} 12. N1d2 {[%clk 0:02:38]}
12... Nh6 {[%clk 0:02:32.2]} 13. f3 {[%clk 0:02:36.6]} 13... Nf7 {[%clk
0:02:31.9]} 14. Ke2 {[%clk 0:02:31]} 14... Nd6 {[%clk 0:02:27.6]} 15. Rhd1
{[%clk 0:02:21]} 15... g6 {[%clk 0:02:26.4]} 16. Bf2 {[%clk 0:02:02.9]} 16... f5
{[%clk 0:02:22.1]} 17. Na5 {[%clk 0:01:47.4]} 17... Be7 {[%clk 0:02:06.1]} 18.
b4 {[%clk 0:01:28.2]} 18... Rhc8 {[%clk 0:01:57.2]} 19. Rab1 {[%clk 0:01:26.1]}
19... b6 {[%clk 0:01:48.7]} 20. Nac4 {[%clk 0:01:18.8]} 20... Nxc4 {[%clk
0:01:45.9]} 21. Nxc4 {[%clk 0:01:19.7]} 21... b5 {[%clk 0:01:46.2]} 22. exf5+
{[%clk 0:01:02.2]} 22... gxf5 {[%clk 0:01:44.4]} 23. Na5 {[%clk 0:01:02.4]}
23... bxa4 {[%clk 0:01:36.2]} 24. c3 {[%clk 0:01:02.8]} 24... Nb6 {[%clk
0:01:15.3]} 25. Be1 {[%clk 0:01:02]} 25... Nd5 {[%clk 0:01:09.2]} 26. c4 {[%clk
0:01:00.9]} 26... Nf4+ {[%clk 0:01:06.8]} 27. Kf1 {[%clk 0:01:00.7]} 27... Rab8
{[%clk 0:00:57.5]} 28. g3 {[%clk 0:00:56.7]} 28... Ng6 {[%clk 0:00:55.1]} 29. c5
{[%clk 0:00:53.4]} 29... h4 {[%clk 0:00:30.8]} 30. Ra1 {[%clk 0:00:47.2]} 30...
hxg3 {[%clk 0:00:30.7]} 31. hxg3 {[%clk 0:00:48.1]} 31... e4 {[%clk 0:00:28.1]}
32. f4 {[%clk 0:00:43.6]} 32... Rh8 {[%clk 0:00:19.5]} 33. Nxc6 {[%clk
0:00:42.7]} 33... Rh1+ {[%clk 0:00:18.7]} 34. Ke2 {[%clk 0:00:43.2]} 34... Rbh8
{[%clk 0:00:18.7]} 35. Bf2 {[%clk 0:00:30.8]} 35... Rxd1 {[%clk 0:00:17.4]} 36.
Rxd1 {[%clk 0:00:29.2]} 36... Rh2 {[%clk 0:00:16.2]} 37. Ra1 {[%clk 0:00:16.1]}
37... Kd5 {[%clk 0:00:05.7]} 38. Nxe7+ {[%clk 0:00:15.5]} 38... Nxe7 {[%clk
0:00:06.6]} 39. Rxa4 {[%clk 0:00:15.7]} 39... Nc6 {[%clk 0:00:06.9]} 40. Kf1
{[%clk 0:00:15.4]} 40... Kc4 {[%clk 0:00:05.3]} 41. Kg1 {[%clk 0:00:11.3]} 41...
Rh8 {[%clk 0:00:05.1]} 42. Be1 {[%clk 0:00:07.1]} 42... Kb5 {[%clk 0:00:05.3]}
43. Ra1 {[%clk 0:00:06.6]} 43... Rd8 {[%clk 0:00:05.9]} 44. Kf1 {[%clk
0:00:06.2]} 44... Rd7 {[%clk 0:00:06]} 45. Ra2 {[%clk 0:00:05.3]} 45... Nxb4
{[%clk 0:00:05.9]} 46. Bxb4 {[%clk 0:00:02.9]} 46... Kxb4 {[%clk 0:00:06.3]} 47.
c6 {[%clk 0:00:03.2]} 47... Rc7 {[%clk 0:00:06.8]} 48. Rc2 {[%clk 0:00:03.4]}
48... Kb5 {[%clk 0:00:06.9]} 49. Ke2 {[%clk 0:00:03.8]} 49... Rxc6 {[%clk
0:00:07.4]} 50. Rb2+ {[%clk 0:00:04.6]} 50... Kc4 {[%clk 0:00:06.9]} 51. Ke3
{[%clk 0:00:05]} 51... a5 {[%clk 0:00:06.7]} 52. g4 {[%clk 0:00:04.8]} 52...
fxg4 {[%clk 0:00:06.7]} 53. Kxe4 {[%clk 0:00:05.4]} 53... a4 {[%clk 0:00:06.7]}
54. f5 {[%clk 0:00:05]} 54... Kc3 {[%clk 0:00:06.4]} 55. Rg2 {[%clk 0:00:04.5]}
55... a3 {[%clk 0:00:05.8]} 56. Rg3+ {[%clk 0:00:03.6]} 56... Kb2 {[%clk
0:00:05.2]} 57. Rxg4 {[%clk 0:00:02.9]} 57... Rc4+ {[%clk 0:00:05]} 58. Kf3
{[%clk 0:00:02.4]} 58... Rxg4 {[%clk 0:00:05.6]} 59. Kxg4 {[%clk 0:00:03.3]}
59... a2 {[%clk 0:00:06.2]} 60. f6 {[%clk 0:00:04.2]} 60... a1=Q {[%clk
0:00:06.5]} 61. Kf5 {[%clk 0:00:05.1]} 61... Qa3 {[%clk 0:00:05.5]} 62. Ke6
{[%clk 0:00:06]} 62... Qf8 {[%clk 0:00:06.1]} 63. Kf5 {[%clk 0:00:05.5]} 63...
Kc3 {[%clk 0:00:07]} 64. Kg6 {[%clk 0:00:06.4]} 64... Kc4 {[%clk 0:00:07.6]} 0-1